[Event "Titled Tuesday Blitz February 07 Late 2023"]
[White "Sailer, Mike"]
[Black "Nunez V, Gustavo Eduardo"]
[WhiteFideId "2012901"]
[BlackFideId "4403690"]
[WhiteElo "2109"]
[BlackElo "2212"]
[Result "1-0"]
[Round "11"]
[TimeControl "180+2"]
[Date "2023.02.07"]
[WhiteClock "0:00:09"]
[BlackClock "0:00:11"]

1. d4 {[%clk 0:03:00]}  Nf6 {[%clk 0:02:59]} 2. Nf3 {[%clk 0:02:59]}  g6 {[%clk 0:02:47]} 3. Bf4 {[%clk 0:02:58]}  Bg7 {[%clk 0:02:46]} 4. e3 {[%clk 0:02:58]}  h6 {[%clk 0:02:41]} 5. h3 {[%clk 0:02:57]}  d6 {[%clk 0:02:40]} 6. Be2 {[%clk 0:02:57]}  Nbd7 {[%clk 0:02:40]} 7. c4 {[%clk 0:02:55]}  c6 {[%clk 0:02:40]} 8. Nc3 {[%clk 0:02:55]}  a5 {[%clk 0:02:39]} 9. O-O {[%clk 0:02:52]}  O-O {[%clk 0:02:39]} 10. a3 {[%clk 0:02:52]}  Qc7 {[%clk 0:02:33]} 11. b4 {[%clk 0:02:50]}  e5 {[%clk 0:02:31]} 12. Bh2 {[%clk 0:02:50]}  Re8 {[%clk 0:02:30]} 13. c5 {[%clk 0:02:46]}  axb4 {[%clk 0:02:03]} 14. axb4 {[%clk 0:02:46]}  Rxa1 {[%clk 0:02:03]} 15. Qxa1 {[%clk 0:02:46]}  Nd5 {[%clk 0:01:42]} 16. Nxd5 {[%clk 0:02:29]}  cxd5 {[%clk 0:01:43]} 17. Bb5 {[%clk 0:02:05]}  dxc5 {[%clk 0:01:34]} 18. bxc5 {[%clk 0:02:03]}  f6 {[%clk 0:01:30]} 19. Qa2 {[%clk 0:01:45]}  Kh7 {[%clk 0:01:04]} 20. Qxd5 {[%clk 0:01:44]}  Rd8 {[%clk 0:01:05]} 21. Qf7 {[%clk 0:01:27]}  Rf8 {[%clk 0:01:02]} 22. Qe7 {[%clk 0:01:19]}  Qd8 {[%clk 0:00:57]} 23. Qd6 {[%clk 0:01:11]}  exd4 {[%clk 0:00:39]} 24. exd4 {[%clk 0:01:11]}  f5 {[%clk 0:00:39]} 25. Re1 {[%clk 0:01:06]}  Nf6 {[%clk 0:00:38]} 26. Re7 {[%clk 0:00:54]}  Qxd6 {[%clk 0:00:24]} 27. Bxd6 {[%clk 0:00:53]}  Nd5 {[%clk 0:00:17]} 28. Re1 {[%clk 0:00:32]}  Rd8 {[%clk 0:00:13]} 29. Bc4 {[%clk 0:00:29]}  Nb6 {[%clk 0:00:05]} 30. Bb3 {[%clk 0:00:19]}  Nd7 {[%clk 0:00:01]} 31. Re7 {[%clk 0:00:18]}  Kh8 {[%clk 0:00:01]} 32. Bf7 {[%clk 0:00:05]}  Nf6 {[%clk 0:00:02]} 33. Bxg6 {[%clk 0:00:03]}  f4 {[%clk 0:00:02]} 34. Bd3 {[%clk 0:00:01]}  Bf5 {[%clk 0:00:02]} 35. Bxf5 {[%clk 0:00:01]}  Ra8 {[%clk 0:00:03]} 36. Rxb7 {[%clk 0:00:01]}  Ra1+ {[%clk 0:00:04]} 37. Kh2 {[%clk 0:00:02]}  Ra8 {[%clk 0:00:04]} 38. Rb8+ {[%clk 0:00:02]}  Rxb8 {[%clk 0:00:04]} 39. Bxb8 {[%clk 0:00:01]}  Nd5 {[%clk 0:00:05]} 40. Be5 {[%clk 0:00:02]}  Nc3 {[%clk 0:00:06]} 41. Bxg7+ {[%clk 0:00:02]}  Kxg7 {[%clk 0:00:06]} 42. Be6 {[%clk 0:00:02]}  Ne2 {[%clk 0:00:07]} 43. d5 {[%clk 0:00:03]}  Kf6 {[%clk 0:00:07]} 44. c6 {[%clk 0:00:03]}  Nd4 {[%clk 0:00:06]} 45. c7 {[%clk 0:00:03]}  Nxe6 {[%clk 0:00:06]} 46. c8=Q {[%clk 0:00:03]}  Ng5 {[%clk 0:00:05]} 47. Qf8+ {[%clk 0:00:04]}  Kg6 {[%clk 0:00:05]} 48. Nxg5 {[%clk 0:00:04]}  hxg5 {[%clk 0:00:06]} 49. d6 {[%clk 0:00:05]}  Kh5 {[%clk 0:00:06]} 50. d7 {[%clk 0:00:05]}  g4 {[%clk 0:00:07]} 51. Qh8+ {[%clk 0:00:05]}  Kg5 {[%clk 0:00:07]} 52. d8=Q+ {[%clk 0:00:05]}  Kf5 {[%clk 0:00:08]} 53. Qhf8+ {[%clk 0:00:06]}  Ke4 {[%clk 0:00:09]} 54. Qfe7+ {[%clk 0:00:06]}  Kf5 {[%clk 0:00:09]} 55. Qdf8+ {[%clk 0:00:07]}  Kg6 {[%clk 0:00:10]} 56. Qeg7+ {[%clk 0:00:08]}  Kh5 {[%clk 0:00:11]} 57. Qfh8# {[%clk 0:00:09]} 1-0


[Site "https://www.chess.com"]

[Event "Titled Tuesday Blitz February 07 Late 2023"]
[White "Gomes, Luiz Alexandre de Souza"]
[Black "Souza, Gustavo Horokoski De"]
[WhiteFideId "2102790"]
[BlackFideId "2146584"]
[WhiteElo "2254"]
[BlackElo "1943"]
[Result "1-0"]
[Round "11"]
[TimeControl "180+2"]
[Date "2023.02.07"]
[WhiteClock "0:01:54"]
[BlackClock "0:00:44"]

1. e4 {[%clk 0:02:57]}  e6 {[%clk 0:02:43]} 2. d4 {[%clk 0:02:56]}  d5 {[%clk 0:02:42]} 3. e5 {[%clk 0:02:56]}  c5 {[%clk 0:02:42]} 4. c3 {[%clk 0:02:57]}  Nc6 {[%clk 0:02:42]} 5. Nf3 {[%clk 0:02:57]}  Nge7 {[%clk 0:02:40]} 6. Bd3 {[%clk 0:02:57]}  Bd7 {[%clk 0:02:39]} 7. O-O {[%clk 0:02:57]}  Qb6 {[%clk 0:02:37]} 8. a3 {[%clk 0:02:57]}  c4 {[%clk 0:02:37]} 9. Bc2 {[%clk 0:02:56]}  Na5 {[%clk 0:02:36]} 10. Nbd2 {[%clk 0:02:56]}  Nec6 {[%clk 0:02:33]} 11. Ng5 {[%clk 0:02:55]}  Be7 {[%clk 0:02:30]} 12. Qh5 {[%clk 0:02:54]}  Bxg5 {[%clk 0:02:29]} 13. Qxg5 {[%clk 0:02:54]}  O-O {[%clk 0:02:17]} 14. Nf3 {[%clk 0:02:53]}  f6 {[%clk 0:02:06]} 15. Qh5 {[%clk 0:02:48]}  f5 {[%clk 0:02:02]} 16. Ng5 {[%clk 0:02:38]}  h6 {[%clk 0:01:58]} 17. Nh3 {[%clk 0:02:34]}  Be8 {[%clk 0:01:51]} 18. Qh4 {[%clk 0:02:31]}  Nb3 {[%clk 0:01:48]} 19. Bxb3 {[%clk 0:02:31]}  Qxb3 {[%clk 0:01:47]} 20. Nf4 {[%clk 0:02:30]}  g5 {[%clk 0:01:40]} 21. Qg3 {[%clk 0:02:23]}  Bf7 {[%clk 0:01:19]} 22. h4 {[%clk 0:02:23]}  g4 {[%clk 0:01:14]} 23. f3 {[%clk 0:02:15]}  h5 {[%clk 0:01:11]} 24. fxg4 {[%clk 0:02:15]}  fxg4 {[%clk 0:01:05]} 25. Qe3 {[%clk 0:02:09]}  Qb6 {[%clk 0:00:54]} 26. Nxh5 {[%clk 0:02:00]}  Bxh5 {[%clk 0:00:47]} 27. Qg5+ {[%clk 0:02:00]}  Kh7 {[%clk 0:00:47]} 28. Qxh5+ {[%clk 0:02:00]}  Kg8 {[%clk 0:00:45]} 29. Qxg4+ {[%clk 0:01:58]}  Kh7 {[%clk 0:00:45]} 30. Qh5+ {[%clk 0:01:57]}  Kg8 {[%clk 0:00:44]} 31. Bh6 {[%clk 0:01:54]} 1-0


[Site "https://www.chess.com"]

[Event "Titled Tuesday Blitz February 07 Late 2023"]
[White "Balog, Imre"]
[Black "Gerbelli Neto, Eduardo"]
[WhiteFideId "728446"]
[BlackFideId "2103281"]
[WhiteElo "2615"]
[BlackElo "2114"]
[Result "1-0"]
[Round "11"]
[TimeControl "180+2"]
[Date "2023.02.07"]
[WhiteClock "0:00:18"]
[BlackClock "0:00:29"]

1. e4 {[%clk 0:03:00]}  e5 {[%clk 0:02:59]} 2. f4 {[%clk 0:02:58]}  Nc6 {[%clk 0:02:59]} 3. Nf3 {[%clk 0:02:58]}  f5 {[%clk 0:02:59]} 4. exf5 {[%clk 0:02:38]}  e4 {[%clk 0:03:00]} 5. Ne5 {[%clk 0:02:25]}  Nxe5 {[%clk 0:03:00]} 6. fxe5 {[%clk 0:02:24]}  Qe7 {[%clk 0:03:01]} 7. d4 {[%clk 0:02:19]}  exd3 {[%clk 0:03:01]} 8. Qh5+ {[%clk 0:02:11]}  Kd8 {[%clk 0:03:01]} 9. Qg5 {[%clk 0:01:56]}  Nf6 {[%clk 0:02:49]} 10. Qf4 {[%clk 0:01:42]}  Nd5 {[%clk 0:01:32]} 11. Qd4 {[%clk 0:01:37]}  Qb4+ {[%clk 0:01:22]} 12. Qxb4 {[%clk 0:01:29]}  Nxb4 {[%clk 0:01:13]} 13. Bxd3 {[%clk 0:01:27]}  Bc5 {[%clk 0:01:08]} 14. Bg5+ {[%clk 0:01:25]}  Ke8 {[%clk 0:01:07]} 15. Nc3 {[%clk 0:01:13]}  Bd4 {[%clk 0:01:05]} 16. O-O-O {[%clk 0:01:03]}  Bxe5 {[%clk 0:00:55]} 17. Rhe1 {[%clk 0:00:49]}  d6 {[%clk 0:00:54]} 18. Bb5+ {[%clk 0:00:41]}  c6 {[%clk 0:00:43]} 19. Rxd6 {[%clk 0:00:27]}  cxb5 {[%clk 0:00:28]} 20. Rxe5+ {[%clk 0:00:23]}  Kf7 {[%clk 0:00:28]} 21. Re7+ {[%clk 0:00:17]}  Kf8 {[%clk 0:00:29]} 22. Rd8# {[%clk 0:00:18]} 1-0


[Site "https://www.chess.com"]

[Event "Titled Tuesday Blitz February 07 Late 2023"]
[White "Sabar, Ethmane Daouda"]
[Black "Nilsen, Tobias Lang"]
[WhiteFideId "19600097"]
[BlackFideId "1521624"]
[WhiteElo "2040"]
[BlackElo "2247"]
[Result "1-0"]
[Round "11"]
[TimeControl "180+2"]
[Date "2023.02.07"]
[WhiteClock "0:00:08"]
[BlackClock "0:00:14"]

1. e4 {[%clk 0:03:00]}  c5 {[%clk 0:02:59]} 2. a3 {[%clk 0:02:59]}  d5 {[%clk 0:02:58]} 3. exd5 {[%clk 0:02:59]}  Nf6 {[%clk 0:02:59]} 4. c4 {[%clk 0:02:57]}  e6 {[%clk 0:02:59]} 5. dxe6 {[%clk 0:02:56]}  Bxe6 {[%clk 0:03:00]} 6. Nc3 {[%clk 0:02:56]}  Nc6 {[%clk 0:03:00]} 7. Nf3 {[%clk 0:02:57]}  Bg4 {[%clk 0:03:00]} 8. Be2 {[%clk 0:02:56]}  Be7 {[%clk 0:03:00]} 9. O-O {[%clk 0:02:56]}  O-O {[%clk 0:03:00]} 10. b4 {[%clk 0:02:50]}  cxb4 {[%clk 0:02:59]} 11. axb4 {[%clk 0:02:51]}  Bxb4 {[%clk 0:02:59]} 12. Bb2 {[%clk 0:02:52]}  Re8 {[%clk 0:02:59]} 13. Re1 {[%clk 0:02:46]}  Bc5 {[%clk 0:02:57]} 14. h3 {[%clk 0:02:29]}  Bh5 {[%clk 0:02:55]} 15. Na4 {[%clk 0:02:03]}  Bxf3 {[%clk 0:01:42]} 16. Nxc5 {[%clk 0:01:50]}  Bxe2 {[%clk 0:01:38]} 17. Rxe2 {[%clk 0:01:51]}  Qb6 {[%clk 0:01:31]} 18. Ba3 {[%clk 0:01:43]}  Nd4 {[%clk 0:01:23]} 19. Rxe8+ {[%clk 0:01:40]}  Rxe8 {[%clk 0:01:24]} 20. Rb1 {[%clk 0:01:26]}  Qc6 {[%clk 0:01:24]} 21. Qa4 {[%clk 0:01:00]}  Qxa4 {[%clk 0:01:17]} 22. Nxa4 {[%clk 0:01:01]}  b6 {[%clk 0:01:17]} 23. Bb2 {[%clk 0:00:56]}  Nb3 {[%clk 0:01:12]} 24. Bc3 {[%clk 0:00:54]}  Nc5 {[%clk 0:01:08]} 25. Nxc5 {[%clk 0:00:53]}  bxc5 {[%clk 0:01:09]} 26. Bxf6 {[%clk 0:00:53]}  gxf6 {[%clk 0:01:09]} 27. Ra1 {[%clk 0:00:51]}  Re4 {[%clk 0:01:06]} 28. d3 {[%clk 0:00:50]}  Rd4 {[%clk 0:01:06]} 29. Ra3 {[%clk 0:00:48]}  Kf8 {[%clk 0:01:05]} 30. Kf1 {[%clk 0:00:49]}  Rd7 {[%clk 0:01:05]} 31. Ke2 {[%clk 0:00:43]}  Ke7 {[%clk 0:01:05]} 32. Ra6 {[%clk 0:00:42]}  Rc7 {[%clk 0:00:53]} 33. Ke3 {[%clk 0:00:41]}  Rb7 {[%clk 0:00:35]} 34. Ra5 {[%clk 0:00:33]}  Rc7 {[%clk 0:00:35]} 35. d4 {[%clk 0:00:30]}  cxd4+ {[%clk 0:00:33]} 36. Kxd4 {[%clk 0:00:31]}  Ke6 {[%clk 0:00:32]} 37. Ra6+ {[%clk 0:00:29]}  Ke7 {[%clk 0:00:30]} 38. c5 {[%clk 0:00:29]}  Rd7+ {[%clk 0:00:27]} 39. Kc4 {[%clk 0:00:27]}  Rd2 {[%clk 0:00:20]} 40. Rxa7+ {[%clk 0:00:26]}  Ke6 {[%clk 0:00:21]} 41. Ra6+ {[%clk 0:00:19]}  Ke5 {[%clk 0:00:20]} 42. f4+ {[%clk 0:00:17]}  Kf5 {[%clk 0:00:19]} 43. g4+ {[%clk 0:00:17]}  Kxf4 {[%clk 0:00:16]} 44. Rxf6+ {[%clk 0:00:17]}  Ke5 {[%clk 0:00:12]} 45. Rxf7 {[%clk 0:00:18]}  Rc2+ {[%clk 0:00:12]} 46. Kb5 {[%clk 0:00:18]}  Kd5 {[%clk 0:00:12]} 47. Rd7+ {[%clk 0:00:18]}  Ke6 {[%clk 0:00:12]} 48. Rxh7 {[%clk 0:00:18]}  Kd5 {[%clk 0:00:12]} 49. Rd7+ {[%clk 0:00:17]}  Ke6 {[%clk 0:00:13]} 50. Rd3 {[%clk 0:00:17]}  Rc1 {[%clk 0:00:12]} 51. c6 {[%clk 0:00:16]}  Rb1+ {[%clk 0:00:11]} 52. Kc5 {[%clk 0:00:17]}  Rc1+ {[%clk 0:00:11]} 53. Kb6 {[%clk 0:00:17]}  Rb1+ {[%clk 0:00:12]} 54. Kc7 {[%clk 0:00:17]}  Rc1 {[%clk 0:00:12]} 55. Kb7 {[%clk 0:00:17]}  Rb1+ {[%clk 0:00:12]} 56. Kc8 {[%clk 0:00:17]}  Ke7 {[%clk 0:00:12]} 57. c7 {[%clk 0:00:16]}  Rb4 {[%clk 0:00:11]} 58. Rd7+ {[%clk 0:00:07]}  Ke8 {[%clk 0:00:10]} 59. Rd5 {[%clk 0:00:05]}  Ke7 {[%clk 0:00:09]} 60. g5 {[%clk 0:00:05]}  Rb3 {[%clk 0:00:08]} 61. h4 {[%clk 0:00:03]}  Rh3 {[%clk 0:00:08]} 62. Kb7 {[%clk 0:00:02]}  Rb3+ {[%clk 0:00:08]} 63. Kc6 {[%clk 0:00:02]}  Rc3+ {[%clk 0:00:07]} 64. Rc5 {[%clk 0:00:02]}  Rxc5+ {[%clk 0:00:08]} 65. Kxc5 {[%clk 0:00:03]}  Kd7 {[%clk 0:00:09]} 66. g6 {[%clk 0:00:03]}  Kc8 {[%clk 0:00:10]} 67. g7 {[%clk 0:00:03]}  Kb7 {[%clk 0:00:11]} 68. g8=Q {[%clk 0:00:04]}  Ka6 {[%clk 0:00:12]} 69. h5 {[%clk 0:00:05]}  Kb7 {[%clk 0:00:12]} 70. h6 {[%clk 0:00:05]}  Ka6 {[%clk 0:00:13]} 71. c8=Q+ {[%clk 0:00:06]}  Ka5 {[%clk 0:00:14]} 72. Qge6 {[%clk 0:00:06]}  Ka4 {[%clk 0:00:14]} 73. Qb6 {[%clk 0:00:07]}  Ka3 {[%clk 0:00:14]} 74. Qa8# {[%clk 0:00:08]} 1-0


[Site "https://www.chess.com"]

[Event "Titled Tuesday Blitz February 07 Late 2023"]
[White "Li, Hui"]
[Black "Vaglio Munoz, Jaime"]
[WhiteFideId "15400310"]
[BlackFideId "6500145"]
[WhiteElo "1963"]
[BlackElo "2174"]
[Result "1/2-1/2"]
[Round "11"]
[TimeControl "180+2"]
[Date "2023.02.07"]
[WhiteClock "0:02:47"]
[BlackClock "0:03:01"]

1. e4 {[%clk 0:03:00]}  e6 {[%clk 0:03:00]} 2. d4 {[%clk 0:03:00]}  d5 {[%clk 0:03:00]} 3. Nd2 {[%clk 0:03:00]}  dxe4 {[%clk 0:03:00]} 4. Nxe4 {[%clk 0:03:01]}  Nf6 {[%clk 0:03:00]} 5. Nxf6+ {[%clk 0:03:01]}  Qxf6 {[%clk 0:03:01]} 6. Nf3 {[%clk 0:03:01]}  h6 {[%clk 0:03:01]} 7. Bd3 {[%clk 0:03:01]}  Nc6 {[%clk 0:03:02]} 8. c3 {[%clk 0:02:59]}  Bd6 {[%clk 0:03:02]} 9. Be3 {[%clk 0:02:55]}  O-O {[%clk 0:03:01]} 10. O-O {[%clk 0:02:53]}  e5 {[%clk 0:03:01]} 11. dxe5 {[%clk 0:02:47]}  Nxe5 {[%clk 0:03:02]} 12. Nxe5 {[%clk 0:02:47]}  Bxe5 {[%clk 0:03:01]} 1/2-1/2


[Site "https://www.chess.com"]

[Event "Titled Tuesday Blitz February 07 Late 2023"]
[White "Ardila, Oscar Humberto"]
[Black "Slavin, Alexey"]
[WhiteFideId "4404742"]
[BlackFideId "24104388"]
[WhiteElo "1982"]
[BlackElo "2364"]
[Result "0-1"]
[Round "11"]
[TimeControl "180+2"]
[Date "2023.02.07"]
[WhiteClock "0:00:18"]
[BlackClock "0:01:27"]

1. d4 {[%clk 0:03:00]}  Nc6 {[%clk 0:02:59]} 2. Nf3 {[%clk 0:02:57]}  d6 {[%clk 0:02:58]} 3. h3 {[%clk 0:02:56]}  Nf6 {[%clk 0:02:57]} 4. c4 {[%clk 0:02:53]}  e5 {[%clk 0:02:56]} 5. d5 {[%clk 0:02:53]}  Ne7 {[%clk 0:02:56]} 6. Nc3 {[%clk 0:02:52]}  Ng6 {[%clk 0:02:56]} 7. g3 {[%clk 0:02:49]}  Be7 {[%clk 0:02:56]} 8. Bg2 {[%clk 0:02:49]}  h6 {[%clk 0:02:56]} 9. O-O {[%clk 0:02:49]}  Bd7 {[%clk 0:02:56]} 10. Qc2 {[%clk 0:02:48]}  O-O {[%clk 0:02:55]} 11. Be3 {[%clk 0:02:45]}  a6 {[%clk 0:02:54]} 12. b4 {[%clk 0:02:42]}  Qc8 {[%clk 0:02:50]} 13. Kh2 {[%clk 0:02:40]}  Bf5 {[%clk 0:02:50]} 14. Qc1 {[%clk 0:02:35]}  Ne4 {[%clk 0:02:49]} 15. Nxe4 {[%clk 0:02:33]}  Bxe4 {[%clk 0:02:49]} 16. Nd2 {[%clk 0:02:33]}  Bxg2 {[%clk 0:02:48]} 17. Kxg2 {[%clk 0:02:32]}  f5 {[%clk 0:02:48]} 18. f4 {[%clk 0:02:24]}  exf4 {[%clk 0:02:47]} 19. Bxf4 {[%clk 0:02:23]}  Nxf4+ {[%clk 0:02:46]} 20. gxf4 {[%clk 0:02:15]}  Bf6 {[%clk 0:02:46]} 21. Rb1 {[%clk 0:02:14]}  Qe8 {[%clk 0:02:44]} 22. Qd1 {[%clk 0:01:57]}  Qg6+ {[%clk 0:02:25]} 23. Kh2 {[%clk 0:01:53]}  Rae8 {[%clk 0:02:25]} 24. Nf3 {[%clk 0:01:49]}  Qh5 {[%clk 0:02:20]} 25. Qd3 {[%clk 0:01:43]}  Re4 {[%clk 0:02:18]} 26. e3 {[%clk 0:01:28]}  Rfe8 {[%clk 0:02:17]} 27. Rbe1 {[%clk 0:01:28]}  Bh4 {[%clk 0:01:59]} 28. Re2 {[%clk 0:01:23]}  Bf6 {[%clk 0:01:49]} 29. a4 {[%clk 0:01:17]}  Kh8 {[%clk 0:01:46]} 30. b5 {[%clk 0:01:16]}  axb5 {[%clk 0:01:45]} 31. axb5 {[%clk 0:01:15]}  b6 {[%clk 0:01:44]} 32. Nd2 {[%clk 0:01:00]}  Rd4 {[%clk 0:01:30]} 33. exd4 {[%clk 0:00:18]}  Qxe2+ {[%clk 0:01:28]} 34. Kg3 {[%clk 0:00:18]}  Qxd3+ {[%clk 0:01:27]} 0-1


[Site "https://www.chess.com"]

[Event "Titled Tuesday Blitz February 07 Late 2023"]
[White "Barash, Anton"]
[Black "Romanchuk, Viktor"]
[WhiteFideId "30935229"]
[BlackFideId "14109271"]
[WhiteElo "2074"]
[BlackElo "2266"]
[Result "0-1"]
[Round "11"]
[TimeControl "180+2"]
[Date "2023.02.07"]
[WhiteClock "0:00:03"]
[BlackClock "0:00:06"]

1. e4 {[%clk 0:03:00]}  c6 {[%clk 0:02:59]} 2. d4 {[%clk 0:03:00]}  d5 {[%clk 0:02:59]} 3. Nc3 {[%clk 0:03:01]}  dxe4 {[%clk 0:02:59]} 4. f3 {[%clk 0:03:01]}  exf3 {[%clk 0:02:54]} 5. Nxf3 {[%clk 0:03:02]}  Bf5 {[%clk 0:02:53]} 6. Bd3 {[%clk 0:03:00]}  Bxd3 {[%clk 0:02:49]} 7. Qxd3 {[%clk 0:03:01]}  Nf6 {[%clk 0:02:49]} 8. Bd2 {[%clk 0:02:54]}  Nbd7 {[%clk 0:02:49]} 9. O-O-O {[%clk 0:02:53]}  e6 {[%clk 0:02:49]} 10. Rhg1 {[%clk 0:02:53]}  Qc7 {[%clk 0:02:43]} 11. g4 {[%clk 0:02:50]}  O-O-O {[%clk 0:02:33]} 12. g5 {[%clk 0:02:43]}  Nd5 {[%clk 0:02:32]} 13. Ne4 {[%clk 0:02:40]}  e5 {[%clk 0:02:20]} 14. Kb1 {[%clk 0:02:31]}  exd4 {[%clk 0:02:12]} 15. Rdf1 {[%clk 0:02:17]}  Ne3 {[%clk 0:01:33]} 16. Bxe3 {[%clk 0:02:09]}  dxe3 {[%clk 0:01:34]} 17. Qxe3 {[%clk 0:02:04]}  Qb6 {[%clk 0:01:24]} 18. Qf4 {[%clk 0:01:43]}  Ba3 {[%clk 0:01:19]} 19. b3 {[%clk 0:01:42]}  Rhf8 {[%clk 0:01:18]} 20. Nd6+ {[%clk 0:01:39]}  Bxd6 {[%clk 0:01:15]} 21. Qxd6 {[%clk 0:01:40]}  Nc5 {[%clk 0:01:10]} 22. Qf4 {[%clk 0:01:34]}  f6 {[%clk 0:00:54]} 23. gxf6 {[%clk 0:01:16]}  Rxf6 {[%clk 0:00:52]} 24. Qg4+ {[%clk 0:01:14]}  Kb8 {[%clk 0:00:52]} 25. Qxg7 {[%clk 0:01:14]}  Rdf8 {[%clk 0:00:52]} 26. Nd2 {[%clk 0:01:01]}  Rxf1+ {[%clk 0:00:44]} 27. Rxf1 {[%clk 0:01:02]}  Rxf1+ {[%clk 0:00:44]} 28. Nxf1 {[%clk 0:01:02]}  a5 {[%clk 0:00:42]} 29. Qxh7 {[%clk 0:00:45]}  Qd8 {[%clk 0:00:42]} 30. Qh5 {[%clk 0:00:33]}  Qd4 {[%clk 0:00:37]} 31. Qe8+ {[%clk 0:00:24]}  Ka7 {[%clk 0:00:35]} 32. Qe2 {[%clk 0:00:24]}  b6 {[%clk 0:00:29]} 33. Ne3 {[%clk 0:00:06]}  Ne4 {[%clk 0:00:26]} 34. Nd1 {[%clk 0:00:03]}  a4 {[%clk 0:00:24]} 35. Qd3 {[%clk 0:00:02]}  Qe5 {[%clk 0:00:20]} 36. Nb2 {[%clk 0:00:01]}  Nc3+ {[%clk 0:00:14]} 37. Kc1 {[%clk 0:00:01]}  Nxa2+ {[%clk 0:00:11]} 38. Kb1 {[%clk 0:00:02]}  Nc3+ {[%clk 0:00:11]} 39. Kc1 {[%clk 0:00:03]}  a3 {[%clk 0:00:11]} 40. Qd7+ {[%clk 0:00:02]}  Ka6 {[%clk 0:00:08]} 41. Qd3+ {[%clk 0:00:03]}  b5 {[%clk 0:00:08]} 42. Nd1 {[%clk 0:00:03]}  Nxd1 {[%clk 0:00:06]} 0-1


[Site "https://www.chess.com"]

[Event "Titled Tuesday Blitz February 07 Late 2023"]
[White "Gonzalez, Francisco Silva"]
[Black "Floresvillar Gonzalez, Luis Migu"]
[WhiteFideId "1512285"]
[BlackFideId "5100542"]
[WhiteElo "2021"]
[BlackElo "2043"]
[Result "1-0"]
[Round "11"]
[TimeControl "180+2"]
[Date "2023.02.07"]
[WhiteClock "0:01:03"]
[BlackClock "0:00:02"]

1. d4 {[%clk 0:02:54]}  d6 {[%clk 0:02:59]} 2. e4 {[%clk 0:02:53]}  g6 {[%clk 0:02:59]} 3. c4 {[%clk 0:02:52]}  Bg7 {[%clk 0:02:58]} 4. Ne2 {[%clk 0:02:50]}  c6 {[%clk 0:02:57]} 5. Nbc3 {[%clk 0:02:49]}  a6 {[%clk 0:02:58]} 6. a4 {[%clk 0:02:47]}  b6 {[%clk 0:02:56]} 7. h4 {[%clk 0:02:45]}  h5 {[%clk 0:02:54]} 8. Ng1 {[%clk 0:02:43]}  Bb7 {[%clk 0:02:47]} 9. Nh3 {[%clk 0:02:41]}  Nd7 {[%clk 0:02:46]} 10. Ng5 {[%clk 0:02:40]}  Ngf6 {[%clk 0:02:44]} 11. Be2 {[%clk 0:02:32]}  e6 {[%clk 0:02:42]} 12. Be3 {[%clk 0:02:29]}  c5 {[%clk 0:02:38]} 13. d5 {[%clk 0:02:28]}  exd5 {[%clk 0:02:37]} 14. cxd5 {[%clk 0:02:27]}  Qe7 {[%clk 0:02:27]} 15. f4 {[%clk 0:02:24]}  b5 {[%clk 0:02:14]} 16. axb5 {[%clk 0:02:23]}  axb5 {[%clk 0:02:14]} 17. Rxa8+ {[%clk 0:02:22]}  Bxa8 {[%clk 0:02:14]} 18. e5 {[%clk 0:02:19]}  dxe5 {[%clk 0:02:07]} 19. d6 {[%clk 0:02:19]}  Qd8 {[%clk 0:02:01]} 20. Qb3 {[%clk 0:02:17]}  O-O {[%clk 0:01:57]} 21. Qxb5 {[%clk 0:02:16]}  exf4 {[%clk 0:01:51]} 22. Bxf4 {[%clk 0:02:15]}  Bxg2 {[%clk 0:01:50]} 23. Rg1 {[%clk 0:02:14]}  Bd5 {[%clk 0:01:42]} 24. Kf2 {[%clk 0:02:04]}  Re8 {[%clk 0:01:38]} 25. Qd3 {[%clk 0:01:50]}  Rxe2+ {[%clk 0:01:19]} 26. Kxe2 {[%clk 0:01:48]}  c4 {[%clk 0:01:11]} 27. Qd4 {[%clk 0:01:38]}  Qa5 {[%clk 0:00:44]} 28. Qd2 {[%clk 0:01:30]}  Qc5 {[%clk 0:00:39]} 29. Qe3 {[%clk 0:01:22]}  Qb4 {[%clk 0:00:28]} 30. Nxd5 {[%clk 0:01:21]}  Nxd5 {[%clk 0:00:22]} 31. Qe8+ {[%clk 0:01:19]}  Nf8 {[%clk 0:00:14]} 32. Qxf7+ {[%clk 0:01:18]}  Kh8 {[%clk 0:00:14]} 33. Qxd5 {[%clk 0:01:18]}  Qxb2+ {[%clk 0:00:12]} 34. Qd2 {[%clk 0:01:18]}  c3 {[%clk 0:00:10]} 35. Qxb2 {[%clk 0:01:17]}  cxb2 {[%clk 0:00:10]} 36. Be5 {[%clk 0:01:14]}  Nd7 {[%clk 0:00:07]} 37. Bxg7+ {[%clk 0:01:08]}  Kxg7 {[%clk 0:00:07]} 38. Rf1 {[%clk 0:01:07]}  Ne5 {[%clk 0:00:03]} 39. Ne6+ {[%clk 0:01:05]}  Kh6 {[%clk 0:00:02]} 40. Kd2 {[%clk 0:01:03]} 1-0


[Site "https://www.chess.com"]

[Event "Titled Tuesday Blitz February 07 Late 2023"]
[White "lisjakzlatko1"]
[Black "Rose, Felix"]
[BlackFideId "5105722"]
[WhiteElo "2213"]
[BlackElo "2091"]
[Result "0-1"]
[Round "11"]
[TimeControl "180+2"]
[Date "2023.02.07"]
[WhiteClock "0:00:10"]
[BlackClock "0:00:57"]

1. d4 {[%clk 0:03:00]}  d5 {[%clk 0:02:59]} 2. Nc3 {[%clk 0:02:59]}  Nf6 {[%clk 0:02:58]} 3. Bf4 {[%clk 0:02:59]}  c5 {[%clk 0:02:58]} 4. e3 {[%clk 0:02:59]}  cxd4 {[%clk 0:02:58]} 5. exd4 {[%clk 0:02:58]}  a6 {[%clk 0:02:58]} 6. Nf3 {[%clk 0:02:55]}  Nc6 {[%clk 0:02:57]} 7. Bd3 {[%clk 0:02:53]}  Bg4 {[%clk 0:02:56]} 8. Be2 {[%clk 0:02:38]}  e6 {[%clk 0:02:54]} 9. O-O {[%clk 0:02:39]}  Bd6 {[%clk 0:02:53]} 10. Ne5 {[%clk 0:02:34]}  Bxe2 {[%clk 0:02:53]} 11. Nxe2 {[%clk 0:02:30]}  Rc8 {[%clk 0:02:50]} 12. c3 {[%clk 0:02:15]}  O-O {[%clk 0:02:41]} 13. Qb3 {[%clk 0:02:08]}  b5 {[%clk 0:02:38]} 14. a4 {[%clk 0:02:06]}  Qb6 {[%clk 0:02:34]} 15. Ng3 {[%clk 0:02:00]}  Rfd8 {[%clk 0:02:18]} 16. h4 {[%clk 0:01:49]}  b4 {[%clk 0:02:17]} 17. h5 {[%clk 0:01:45]}  h6 {[%clk 0:02:15]} 18. Qd1 {[%clk 0:01:11]}  bxc3 {[%clk 0:02:13]} 19. bxc3 {[%clk 0:01:10]}  Ne7 {[%clk 0:02:06]} 20. Rb1 {[%clk 0:01:04]}  Qc7 {[%clk 0:01:42]} 21. Rb3 {[%clk 0:00:55]}  Qa5 {[%clk 0:01:38]} 22. Qf3 {[%clk 0:00:38]}  Qxa4 {[%clk 0:01:29]} 23. Rb7 {[%clk 0:00:38]}  Rc7 {[%clk 0:01:12]} 24. Rxc7 {[%clk 0:00:34]}  Bxc7 {[%clk 0:01:13]} 25. Nxf7 {[%clk 0:00:18]}  Kxf7 {[%clk 0:01:10]} 26. Bxc7 {[%clk 0:00:17]}  Rc8 {[%clk 0:01:10]} 27. Be5 {[%clk 0:00:16]}  Qa3 {[%clk 0:01:03]} 28. Qf4 {[%clk 0:00:10]}  Ng8 {[%clk 0:00:57]} 0-1


[Site "https://www.chess.com"]